[Event "NJSK 2023 Meisjes C"]
[Site "Almelo, Netherlands"]
[Date "2023.04.30"]
[Round "1.1"]
[White "Koorevaar, Sarah-Joy"]
[Black "Westerhof, Fleur"]
[Result "0-1"]
[TimeControl "90min/40moves + 30min + 30sec/move"]
[WhiteElo "1067"]
[BlackElo "1743"]

1. d4 {[%clk 01:30:59]} d5 {[%clk 01:30:54]} {[%emt 00:00:06]} 2. c4 {[%clk
01:31:24]} {[%emt 00:00:05]} e6 {[%clk 01:31:15]} {[%emt 00:00:09]} 3. g3
{[%clk 01:31:41]} {[%emt 00:00:13]} Nf6 {[%clk 01:31:25]} {[%emt 00:00:19]} 4.
Bg2 {[%clk 01:32:01]} {[%emt 00:00:11]} Be7 {[%clk 01:30:59]} {[%emt 00:00:56]}
5. Bf4 {[%clk 01:32:09]} {[%emt 00:00:22]} O-O {[%clk 01:27:23]} {[%emt
00:04:05]} 6. Nd2 {[%clk 01:32:24]} {[%emt 00:00:16]} c5 {[%clk 01:22:57]}
{[%emt 00:04:57]} 7. e3 {[%clk 01:29:36]} {[%emt 00:03:18]} Nc6 {[%clk
01:17:37]} {[%emt 00:05:50]} 8. Ngf3 {[%clk 01:28:41]} {[%emt 00:01:25]} Nh5
{[%clk 01:06:55]} {[%emt 00:11:11]} 9. Ne5 {[%clk 01:17:49]} {[%emt 00:11:22]}
Nxf4 {[%clk 01:05:56]} {[%emt 00:01:29]} 10. gxf4 {[%clk 01:07:32]} {[%emt
00:10:47]} cxd4 {[%clk 01:00:27]} {[%emt 00:05:58]} 11. Nxc6 {[%clk 01:05:23]}
{[%emt 00:02:40]} bxc6 {[%clk 00:59:53]} {[%emt 00:01:03]} 12. exd4 {[%clk
01:05:24]} {[%emt 00:00:30]} Qb6 {[%clk 00:49:21]} {[%emt 00:11:02]} 13. c5
{[%clk 00:53:52]} {[%emt 00:12:03]} Qxb2 {[%clk 00:46:46]} {[%emt 00:03:05]} 14.
Nb3 {[%clk 00:52:48]} {[%emt 00:01:35]} Qc3+ {[%clk 00:44:32]} {[%emt
00:02:43]} 15. Qd2 {[%clk 00:51:14]} {[%emt 00:02:04]} Qxd2+ {[%clk 00:43:59]}
{[%emt 00:01:02]} 16. Kxd2 {[%clk 00:51:17]} {[%emt 00:00:28]} Bd7 {[%clk
00:41:28]} {[%emt 00:03:00]} 17. Rae1 {[%clk 00:49:07]} {[%emt 00:02:41]} Rfb8
{[%clk 00:38:23]} {[%emt 00:03:35]} 18. Kc2 {[%clk 00:47:39]} {[%emt 00:01:59]}
Bf6 {[%clk 00:34:41]} {[%emt 00:04:10]} 19. Bh3 {[%clk 00:44:26]} {[%emt
00:03:43]} Rb4 {[%clk 00:32:34]} {[%emt 00:02:38]} 20. a3 {[%clk 00:42:06]}
{[%emt 00:02:51]} Ra4 {[%clk 00:29:03]} {[%emt 00:04:01]} 21. Kc3 {[%clk
00:35:45]} {[%emt 00:06:51]} Rxa3 {[%clk 00:28:11]} {[%emt 00:01:22]} 22. Ra1
{[%clk 00:35:44]} {[%emt 00:00:30]} Bxd4+ {[%clk 00:27:33]} {[%emt 00:01:08]}
23. Kxd4 {[%clk 00:33:55]} {[%emt 00:02:19]} Rxb3 {[%clk 00:26:57]} {[%emt
00:01:06]} 24. Bg2 {[%clk 00:31:19]} {[%emt 00:03:06]} Kf8 {[%clk 00:23:00]}
{[%emt 00:04:27]} 25. Rhb1 {[%clk 00:27:04]} {[%emt 00:04:46]} Rxb1 {[%clk
00:21:46]} {[%emt 00:01:43]} 26. Rxb1 {[%clk 00:27:30]} {[%emt 00:00:05]} Ke7
{[%clk 00:21:27]} {[%emt 00:00:48]} 27. Ke5 {[%clk 00:26:32]} {[%emt 00:01:29]}
a5 {[%clk 00:20:05]} {[%emt 00:01:51]} 28. Ra1 {[%clk 00:25:33]} {[%emt
00:01:30]} a4 {[%clk 00:17:21]} {[%emt 00:03:14]} 29. Bf3 {[%clk 00:25:03]}
{[%emt 00:00:59]} a3 {[%clk 00:16:33]} {[%emt 00:01:18]} 30. Kd4 {[%clk
00:21:28]} {[%emt 00:04:05]} Ra4+ {[%clk 00:13:54]} {[%emt 00:03:09]} 31. Ke3
{[%clk 00:20:40]} {[%emt 00:01:18]} f6 {[%clk 00:10:04]} {[%emt 00:04:20]} 32.
Bd1 {[%clk 00:18:37]} {[%emt 00:02:32]} Rc4 {[%clk 00:09:15]} {[%emt 00:01:19]}
33. Rxa3 {[%clk 00:18:27]} {[%emt 00:00:41]} Rxc5 {[%clk 00:09:37]} {[%emt
00:00:09]} 34. Kd4 {[%clk 00:15:53]} {[%emt 00:03:03]} Rc4+ {[%clk 00:09:41]}
{[%emt 00:00:26]} 35. Ke3 {[%clk 00:16:00]} {[%emt 00:00:22]} Kd6 {[%clk
00:08:47]} {[%emt 00:01:24]} 36. Bg4 {[%clk 00:13:31]} {[%emt 00:03:00]} g5
{[%clk 00:07:14]} {[%emt 00:02:03]} 37. fxg5 {[%clk 00:07:27]} {[%emt
00:06:35]} Rxg4 {[%clk 00:07:18]} {[%emt 00:00:25]} 38. gxf6 {[%clk 00:07:42]}
{[%emt 00:00:15]} Rg6 {[%clk 00:07:30]} {[%emt 00:00:17]} 0-1

[Event "NJSK 2023 Meisjes C"]
[Site "Almelo, Netherlands"]
[Date "2023.04.30"]
[Round "1.2"]
[White "Liu, Chia-Yun"]
[Black "Grigoriu, Eva"]
[Result "0-1"]
[TimeControl "90min/40moves + 30min + 30sec/move"]
[WhiteElo "1470"]
[BlackElo "1045"]

1. e4 {[%clk 01:30:57]} {[%emt 00:00:02]} e5 {[%clk 01:30:57]} {[%emt
00:00:04]} 2. Nf3 {[%clk 01:31:22]} {[%emt 00:00:04]} Nc6 {[%clk 01:31:16]}
{[%emt 00:00:11]} 3. Bc4 {[%clk 01:31:43]} {[%emt 00:00:08]} Bc5 {[%clk
01:31:30]} {[%emt 00:00:17]} 4. c3 {[%clk 01:32:03]} {[%emt 00:00:11]} h6
{[%clk 01:31:52]} {[%emt 00:00:07]} 5. d4 {[%clk 01:32:00]} {[%emt 00:00:33]}
exd4 {[%clk 01:32:02]} {[%emt 00:00:21]} 6. cxd4 {[%clk 01:32:23]} {[%emt
00:00:06]} Bb4+ {[%clk 01:32:29]} {[%emt 00:00:03]} 7. Nc3 {[%clk 01:30:49]}
{[%emt 00:02:04]} Nge7 {[%clk 01:32:26]} {[%emt 00:00:33]} 8. O-O {[%clk
01:29:57]} {[%emt 00:01:21]} O-O {[%clk 01:32:50]} {[%emt 00:00:07]} 9. a3
{[%clk 01:29:14]} {[%emt 00:01:13]} Bxc3 {[%clk 01:32:45]} {[%emt 00:00:35]} 10.
bxc3 {[%clk 01:29:28]} {[%emt 00:00:16]} d5 {[%clk 01:32:41]} {[%emt 00:00:34]}
11. exd5 {[%clk 01:23:56]} {[%emt 00:06:02]} Nxd5 {[%clk 01:33:01]} {[%emt
00:00:10]} 12. Qd3 {[%clk 01:22:12]} {[%emt 00:02:14]} Be6 {[%clk 01:30:56]}
{[%emt 00:02:37]} 13. Bd2 {[%clk 01:10:54]} {[%emt 00:11:46]} Nb6 {[%clk
01:27:07]} {[%emt 00:04:20]} 14. Bxe6 {[%clk 01:06:49]} {[%emt 00:04:35]} fxe6
{[%clk 01:27:26]} {[%emt 00:00:10]} 15. Qg6 {[%clk 01:04:00]} {[%emt 00:03:19]}
Qf6 {[%clk 01:25:11]} {[%emt 00:02:45]} 16. Qg3 {[%clk 01:01:42]} {[%emt
00:02:48]} Rac8 {[%clk 01:24:07]} {[%emt 00:01:35]} 17. Ne5 {[%clk 00:58:28]}
{[%emt 00:03:43]} Kh7 {[%clk 01:21:51]} {[%emt 00:02:46]} 18. f4 {[%clk
00:57:19]} {[%emt 00:01:39]} Nxe5 {[%clk 01:19:31]} {[%emt 00:02:51]} 19. fxe5
{[%clk 00:55:38]} {[%emt 00:02:10]} Qg6 {[%clk 01:19:32]} {[%emt 00:00:29]} 20.
Qh3 {[%clk 00:52:33]} {[%emt 00:03:34]} Nc4 {[%clk 01:18:26]} {[%emt 00:01:37]}
21. Bf4 {[%clk 00:48:11]} {[%emt 00:04:51]} c5 {[%clk 01:16:34]} {[%emt
00:02:23]} 22. a4 {[%clk 00:44:28]} {[%emt 00:04:13]} cxd4 {[%clk 01:14:01]}
{[%emt 00:03:03]} 23. cxd4 {[%clk 00:43:32]} {[%emt 00:01:26]} Rcd8 {[%clk
01:14:06]} {[%emt 00:00:25]} 24. Be3 {[%clk 00:30:00]} {[%emt 00:14:02]} Rxf1+
{[%clk 01:14:17]} {[%emt 00:00:19]} 25. Rxf1 {[%clk 00:30:06]} {[%emt
00:00:24]} Qd3 {[%clk 01:13:43]} {[%emt 00:01:04]} 26. Re1 {[%clk 00:25:57]}
{[%emt 00:04:38]} Nxe3 {[%clk 01:12:59]} {[%emt 00:01:15]} 27. Qxe3 {[%clk
00:23:34]} {[%emt 00:02:53]} Qxe3+ {[%clk 01:12:57]} {[%emt 00:00:32]} 28. Rxe3
{[%clk 00:23:57]} {[%emt 00:00:07]} Rxd4 {[%clk 01:13:25]} {[%emt 00:00:02]} 29.
a5 {[%clk 00:22:42]} {[%emt 00:01:45]} Ra4 {[%clk 01:12:22]} {[%emt 00:01:33]}
30. Rb3 {[%clk 00:22:38]} {[%emt 00:00:34]} Rxa5 {[%clk 01:12:41]} {[%emt
00:00:11]} 31. Rxb7 {[%clk 00:23:01]} {[%emt 00:00:07]} Rxe5 {[%clk 01:13:00]}
{[%emt 00:00:12]} 32. Rxa7 {[%clk 00:23:22]} {[%emt 00:00:08]} Rf5 {[%clk
01:13:18]} {[%emt 00:00:12]} 33. Re7 {[%clk 00:23:41]} {[%emt 00:00:11]} Rf6
{[%clk 01:13:40]} {[%emt 00:00:08]} 34. g3 {[%clk 00:23:55]} {[%emt 00:00:15]}
Kg6 {[%clk 01:14:00]} {[%emt 00:00:10]} 35. Kg2 {[%clk 00:24:11]} {[%emt
00:00:15]} h5 {[%clk 01:12:49]} {[%emt 00:01:41]} 36. Kg1 {[%clk 00:24:00]}
{[%emt 00:00:40]} Kh6 {[%clk 01:12:36]} {[%emt 00:00:44]} 37. Kg2 {[%clk
00:23:34]} {[%emt 00:00:56]} Rg6 {[%clk 01:12:59]} {[%emt 00:00:07]} 38. Kf3
{[%clk 00:23:34]} {[%emt 00:00:26]} Kg5 {[%clk 01:13:22]} {[%emt 00:00:12]} 39.
Rf7 {[%clk 00:21:40]} {[%emt 00:02:23]} Rf6+ {[%clk 01:13:39]} {[%emt
00:00:13]} 40. Rxf6 {[%clk 00:21:55]} {[%emt 00:00:15]} gxf6 {[%clk 01:13:54]}
{[%emt 00:00:14]} 41. h3 {[%clk 00:20:30]} {[%emt 00:01:55]} e5 {[%clk
01:13:17]} {[%emt 00:01:08]} 42. Ke4 {[%clk 00:20:31]} {[%emt 00:00:29]} Kg6
{[%clk 01:12:15]} {[%emt 00:01:31]} 43. h4 {[%clk 00:18:40]} {[%emt 00:02:22]}
Kf7 {[%clk 01:12:22]} {[%emt 00:00:22]} 44. Kf5 {[%clk 00:16:51]} {[%emt
00:02:19]} Ke7 {[%clk 01:12:17]} {[%emt 00:00:36]} 45. g4 {[%clk 00:12:25]}
{[%emt 00:04:56]} hxg4 {[%clk 01:11:24]} {[%emt 00:01:23]} 46. Kxg4 {[%clk
00:12:47]} {[%emt 00:00:08]} Kf7 {[%clk 01:11:47]} {[%emt 00:00:07]} 47. Kf5
{[%clk 00:11:36]} {[%emt 00:01:41]} Kg7 {[%clk 01:11:58]} {[%emt 00:00:19]} 48.
h5 {[%clk 00:11:56]} {[%emt 00:00:10]} Kh6 {[%clk 01:12:18]} {[%emt 00:00:10]}
49. Kg4 {[%clk 00:12:11]} {[%emt 00:00:14]} e4 {[%clk 01:12:20]} {[%emt
00:00:29]} 50. Kf4 {[%clk 00:12:15]} {[%emt 00:00:26]} Kxh5 {[%clk 01:12:42]}
{[%emt 00:00:08]} 51. Kxe4 {[%clk 00:12:38]} {[%emt 00:00:07]} Kg4 {[%clk
01:13:07]} {[%emt 00:00:05]} 52. Ke3 {[%clk 00:12:59]} {[%emt 00:00:08]} Kg3
{[%clk 01:13:24]} {[%emt 00:00:13]} 53. Ke4 {[%clk 00:12:56]} {[%emt 00:00:33]}
Kg4 {[%clk 01:13:41]} {[%emt 00:00:13]} 54. Ke3 {[%clk 00:13:19]} {[%emt
00:00:07]} f5 {[%clk 01:13:51]} {[%emt 00:00:21]} 55. Ke2 {[%clk 00:13:03]}
{[%emt 00:00:46]} Kg3 {[%clk 01:14:05]} {[%emt 00:00:15]} 56. Ke3 {[%clk
00:13:07]} {[%emt 00:00:26]} f4+ {[%clk 01:14:31]} {[%emt 00:00:06]} 57. Ke2
{[%clk 00:13:26]} {[%emt 00:00:10]} Kg2 {[%clk 01:14:51]} {[%emt 00:00:10]} 58.
Ke1 {[%clk 00:13:45]} {[%emt 00:00:10]} f3 {[%clk 01:15:14]} {[%emt 00:00:08]}
0-1

[Event "NJSK 2023 Meisjes C"]
[Site "Almelo, Netherlands"]
[Date "2023.04.30"]
[Round "1.3"]
[White "Regterschot, Frederieke"]
[Black "Fu, Janice"]
[Result "0-1"]
[TimeControl "90min/40moves + 30min + 30sec/move"]
[WhiteElo "966"]
[BlackElo "1408"]

1. d4 {[%clk 01:30:58]} {[%emt 00:00:02]} d5 {[%clk 01:30:52]} {[%emt
00:00:08]} 2. c4 {[%clk 01:31:04]} {[%emt 00:00:24]} e6 {[%clk 01:31:11]}
{[%emt 00:00:11]} 3. Nc3 {[%clk 01:31:16]} {[%emt 00:00:18]} Nf6 {[%clk
01:27:13]} {[%emt 00:04:29]} 4. f3 {[%clk 01:30:15]} {[%emt 00:01:30]} c5
{[%clk 01:23:56]} {[%emt 00:03:47]} 5. Bg5 {[%clk 01:28:14]} {[%emt 00:02:31]}
cxd4 {[%clk 01:19:46]} {[%emt 00:04:40]} 6. Qxd4 {[%clk 01:28:28]} {[%emt
00:00:16]} Nc6 {[%clk 01:18:46]} {[%emt 00:01:29]} 7. Qd1 {[%clk 01:26:32]}
{[%emt 00:02:26]} d4 {[%clk 01:17:12]} {[%emt 00:02:04]} 8. Ne4 {[%clk
01:25:26]} {[%emt 00:01:36]} Bb4+ {[%clk 01:16:38]} {[%emt 00:01:04]} 9. Nd2
{[%clk 01:25:24]} {[%emt 00:00:33]} h6 {[%clk 01:08:23]} {[%emt 00:08:45]} 10.
Bh4 {[%clk 01:25:36]} {[%emt 00:00:17]} e5 {[%clk 01:05:55]} {[%emt 00:02:58]}
11. e4 {[%clk 01:24:31]} {[%emt 00:01:35]} dxe3 {[%clk 01:05:26]} {[%emt
00:00:59]} 12. Bxf6 {[%clk 01:24:25]} {[%emt 00:00:36]} Bxd2+ {[%clk 01:05:27]}
{[%emt 00:00:29]} 13. Ke2 {[%clk 01:24:30]} {[%emt 00:00:25]} Nd4+ {[%clk
01:05:22]} {[%emt 00:00:35]} 14. Kd3 {[%clk 01:24:34]} {[%emt 00:00:27]} Bf5#
{[%clk 01:05:39]} {[%emt 00:00:11]} 0-1

[Event "NJSK 2023 Meisjes C"]
[Site "Almelo, Netherlands"]
[Date "2023.04.30"]
[Round "1.4"]
[White "Jorritsma, Eli Alia"]
[Black "Hardeman, Imara"]
[Result "1-0"]
[TimeControl "90min/40moves + 30min + 30sec/move"]
[WhiteElo "1330"]
[BlackElo "920"]

1. Nf3 {[%clk 01:30:55]} {[%emt 00:00:03]} c6 {[%clk 01:30:56]} {[%emt
00:00:06]} 2. b3 {[%clk 01:31:11]} {[%emt 00:00:13]} d6 {[%clk 01:30:52]}
{[%emt 00:00:35]} 3. d4 {[%clk 01:31:04]} {[%emt 00:00:36]} Qc7 {[%clk
01:31:03]} {[%emt 00:00:20]} 4. Bb2 {[%clk 01:30:43]} {[%emt 00:00:49]} Bg4
{[%clk 01:31:02]} {[%emt 00:00:32]} 5. Nbd2 {[%clk 01:27:41]} {[%emt 00:03:32]}
Nd7 {[%clk 01:29:54]} {[%emt 00:01:38]} 6. e3 {[%clk 01:25:52]} {[%emt
00:02:18]} e5 {[%clk 01:28:44]} {[%emt 00:01:41]} 7. Be2 {[%clk 01:24:26]}
{[%emt 00:01:57]} Ngf6 {[%clk 01:27:51]} {[%emt 00:01:23]} 8. O-O {[%clk
01:17:38]} {[%emt 00:07:17]} Be7 {[%clk 01:25:03]} {[%emt 00:03:19]} 9. c4
{[%clk 01:15:16]} {[%emt 00:02:51]} O-O {[%clk 01:23:41]} {[%emt 00:01:53]} 10.
Rc1 {[%clk 01:08:59]} {[%emt 00:06:46]} Rac8 {[%clk 01:21:50]} {[%emt
00:02:21]} 11. b4 {[%clk 01:00:56]} {[%emt 00:08:33]} Rfe8 {[%clk 01:18:48]}
{[%emt 00:03:33]} 12. a4 {[%clk 00:45:21]} {[%emt 00:16:05]} Qb8 {[%clk
01:14:51]} {[%emt 00:04:27]} 13. b5 {[%clk 00:35:38]} {[%emt 00:10:13]} cxb5
{[%clk 01:08:44]} {[%emt 00:06:37]} 14. axb5 {[%clk 00:35:21]} {[%emt
00:00:47]} h6 {[%clk 00:59:15]} {[%emt 00:09:59]} 15. Ra1 {[%clk 00:30:00]}
{[%emt 00:05:52]} Nb6 {[%clk 00:57:51]} {[%emt 00:01:54]} 16. dxe5 {[%clk
00:28:07]} {[%emt 00:02:23]} dxe5 {[%clk 00:56:30]} {[%emt 00:01:50]} 17. Bxe5
{[%clk 00:27:55]} {[%emt 00:00:41]} Qa8 {[%clk 00:54:25]} {[%emt 00:02:36]} 18.
Bd4 {[%clk 00:27:01]} {[%emt 00:01:24]} Qb8 {[%clk 00:52:58]} {[%emt 00:01:57]}
19. Bxb6 {[%clk 00:25:34]} {[%emt 00:01:57]} axb6 {[%clk 00:53:14]} {[%emt
00:00:14]} 20. Nd4 {[%clk 00:25:13]} {[%emt 00:00:51]} Bd7 {[%clk 00:52:01]}
{[%emt 00:01:44]} 21. N2f3 {[%clk 00:24:47]} {[%emt 00:00:56]} Ne4 {[%clk
00:51:05]} {[%emt 00:01:26]} 22. Qc2 {[%clk 00:22:32]} {[%emt 00:02:45]} Nd6
{[%clk 00:49:25]} {[%emt 00:02:10]} 23. Qa2 {[%clk 00:21:17]} {[%emt 00:01:44]}
Qc7 {[%clk 00:47:38]} {[%emt 00:02:17]} 24. Nd2 {[%clk 00:19:30]} {[%emt
00:02:17]} Bf6 {[%clk 00:47:04]} {[%emt 00:01:04]} 25. Rfe1 {[%clk 00:18:28]}
{[%emt 00:01:32]} Nf5 {[%clk 00:45:01]} {[%emt 00:02:33]} 26. N2f3 {[%clk
00:17:42]} {[%emt 00:01:16]} Qd8 {[%clk 00:40:22]} {[%emt 00:05:09]} 27. Rad1
{[%clk 00:16:43]} {[%emt 00:01:29]} Nd6 {[%clk 00:39:08]} {[%emt 00:01:44]} 28.
Qb3 {[%clk 00:13:42]} {[%emt 00:03:31]} Qc7 {[%clk 00:34:17]} {[%emt 00:05:21]}
29. Rc1 {[%clk 00:13:36]} {[%emt 00:00:36]} Qc5 {[%clk 00:32:08]} {[%emt
00:02:40]} 30. Red1 {[%clk 00:12:25]} {[%emt 00:01:41]} Rc7 {[%clk 00:30:16]}
{[%emt 00:02:22]} 31. Qa4 {[%clk 00:08:09]} {[%emt 00:04:46]} Rec8 {[%clk
00:28:09]} {[%emt 00:02:36]} 32. Nb3 {[%clk 00:07:46]} {[%emt 00:00:54]} Qf5
{[%clk 00:23:52]} {[%emt 00:04:47]} 33. Rxd6 {[%clk 00:07:52]} {[%emt
00:00:23]} Be6 {[%clk 00:20:15]} {[%emt 00:04:08]} 34. Nbd4 {[%clk 00:06:11]}
{[%emt 00:02:11]} Qg4 {[%clk 00:17:40]} {[%emt 00:03:04]} 35. Nxe6 {[%clk
00:05:45]} {[%emt 00:00:56]} fxe6 {[%emt 00:00:25]} 36. Rcd1 {[%clk 00:05:23]}
{[%emt 00:00:40]} Qg6 {[%clk 00:16:22]} {[%emt 00:02:06]} 37. Rxe6 {[%clk
00:04:39]} {[%emt 00:01:14]} Rf8 {[%clk 00:15:39]} {[%emt 00:01:12]} 38. h3
{[%clk 00:03:50]} {[%emt 00:01:19]} Qf7 {[%clk 00:15:20]} {[%emt 00:00:50]} 39.
Rxb6 {[%clk 00:03:34]} {[%emt 00:00:46]} Be7 {[%clk 00:14:34]} {[%emt
00:01:16]} 40. Qc2 {[%clk 00:01:43]} {[%emt 00:02:20]} Bc5 {[%clk 00:10:11]}
{[%emt 00:04:52]} 41. Rbd6 {[%clk 00:01:07]} {[%emt 00:01:07]} Bxd6 {[%clk
00:10:17]} {[%emt 00:00:25]} 42. Rxd6 {[%clk 00:01:26]} {[%emt 00:00:10]} Re8
{[%clk 00:09:25]} {[%emt 00:01:22]} 43. c5 {[%clk 00:01:14]} {[%emt 00:00:43]}
Kh8 {[%clk 00:08:59]} {[%emt 00:00:56]} 44. Qc3 {[%clk 00:00:47]} {[%emt
00:00:56]} Re6 {[%clk 00:08:28]} {[%emt 00:01:02]} 45. Bc4 {[%clk 00:00:33]}
{[%emt 00:00:44]} Qf6 {[%clk 00:07:23]} {[%emt 00:01:35]} 46. Qxf6 {[%clk
00:00:33]} {[%emt 00:00:29]} Rxf6 {[%clk 00:07:46]} {[%emt 00:00:07]} 47. Rd8+
{[%clk 00:28:04]} {[%emt 00:02:59]} Kh7 {[%clk 00:37:55]} {[%emt 00:00:21]} 48.
Bd3+ {[%clk 00:27:08]} {[%emt 00:01:25]} g6 {[%clk 00:38:11]} {[%emt 00:00:15]}
49. Rd6 {[%emt 00:01:19]} Rxd6 {[%clk 00:38:10]} 50. cxd6 {[%clk 00:27:13]}
{[%emt 00:00:06]} Rd7 {[%clk 00:38:34]} {[%emt 00:00:07]} 51. Be4 {[%clk
00:27:08]} {[%emt 00:00:33]} b6 {[%clk 00:38:50]} {[%emt 00:00:15]} 52. Ne5
{[%clk 00:26:02]} {[%emt 00:01:36]} Rxd6 {[%clk 00:38:44]} {[%emt 00:00:36]} 53.
Bxg6+ {[%clk 00:26:06]} {[%emt 00:00:26]} Kg7 {[%clk 00:38:48]} {[%emt
00:00:27]} 54. Bd3 {[%clk 00:24:09]} {[%emt 00:02:26]} Kf6 {[%clk 00:38:12]}
{[%emt 00:01:07]} 55. f4 {[%clk 00:23:53]} {[%emt 00:00:45]} Rd8 {[%clk
00:37:35]} {[%emt 00:01:07]} 56. Kf2 {[%clk 00:23:19]} {[%emt 00:01:03]} Ra8
{[%clk 00:36:52]} {[%emt 00:01:14]} 57. Nd7+ {[%clk 00:22:58]} {[%emt
00:00:51]} Kg7 {[%clk 00:36:20]} {[%emt 00:01:03]} 58. Nxb6 {[%clk 00:23:03]}
{[%emt 00:00:25]} Ra2+ {[%clk 00:36:37]} {[%emt 00:00:13]} 59. Kf3 {[%clk
00:22:55]} {[%emt 00:00:37]} Rb2 {[%clk 00:36:37]} {[%emt 00:00:30]} 60. Nd7
{[%clk 00:21:26]} {[%emt 00:01:59]} Kf7 {[%clk 00:36:27]} {[%emt 00:00:41]} 61.
b6 {[%clk 00:20:52]} {[%emt 00:01:04]} Ke7 {[%clk 00:36:36]} {[%emt 00:00:21]}
62. Bf5 {[%clk 00:20:17]} {[%emt 00:01:04]} Kd6 {[%clk 00:35:21]} {[%emt
00:01:46]} 63. g4 {[%clk 00:18:05]} {[%emt 00:02:41]} Rb5 {[%clk 00:33:02]}
{[%emt 00:02:51]} 64. h4 {[%clk 00:16:15]} {[%emt 00:02:18]} Ke7 {[%clk
00:31:52]} {[%emt 00:01:40]} 65. g5 {[%clk 00:16:08]} {[%emt 00:00:37]} Rxf5
{[%clk 00:30:34]} {[%emt 00:01:49]} 66. b7 {[%clk 00:16:21]} {[%emt 00:00:17]}
Kxd7 {[%clk 00:30:05]} {[%emt 00:00:59]} 67. b8=Q {[%clk 00:16:39]} {[%emt
00:00:11]} Ke7 {[%clk 00:30:12]} {[%emt 00:00:24]} 68. Qc7+ {[%clk 00:16:22]}
{[%emt 00:00:47]} Kf8 {[%clk 00:30:21]} {[%emt 00:00:19]} 69. Qc8+ {[%clk
00:16:41]} {[%emt 00:00:12]} Kg7 {[%clk 00:30:39]} {[%emt 00:00:12]} 70. Qxf5
{[%clk 00:16:56]} {[%emt 00:00:15]} hxg5 {[%clk 00:31:05]} {[%emt 00:00:05]} 71.
Qxg5+ {[%clk 00:17:08]} {[%emt 00:00:17]} Kf8 {[%clk 00:31:19]} {[%emt
00:00:15]} 72. Qf6+ {[%clk 00:17:23]} {[%emt 00:00:16]} 1-0